Cogmind - Beta 14 @@@ ROGUE MODE // 2024.10.25 @ 09:26:13 Player: zitsii Result: Destroyed by S-10 Pest with Light Assault Rifle Performance ------------- Evolutions (1) 500 Regions Visited (2) 400 Robots Destroyed (32) 160 Value Destroyed (749) 749 Prototype IDs (1) 20 Alien Tech Used (0) 0 Bonus (0) 0 TOTAL SCORE: 1829 Bonus ------- None Cogmind --------- Core Integrity 0/400 Matter 270/300 Energy 82/100 System Corruption 0% Temperature Cool (0) Movement Core (50) Location -9/Materials Parts ------- > --- POWER (1) -------- (None) > --- PROPULSION (2) --- (None) > --- UTILITY (4) ------ Transport Network Coupler ECM Suite Utility Shielding > --- WEAPON (2) ------- (None) > --- INVENTORY (5) ---- Aluminum Leg Improved Flight Unit Peak State ------------ > --- POWER ------------ Cooled Ion Engine > --- PROPULSION ------- Aluminum Leg Improved Aluminum Leg > --- UTILITY ---------- Transport Network Coupler ECM Suite Utility Shielding Light Armor Plating > --- WEAPON ----------- Medium Laser Rocket Launcher > --- INVENTORY -------- Aluminum Leg Improved Flight Unit [Rating: 13] Favorites ----------- Power Light Ion Engine Engine Light Ion Engine Propulsion Aluminum Leg Leg Aluminum Leg Utility ECM Suite Device ECM Suite Processor Transport Network Coupler Protection Utility Shielding Weapon Grenade Launcher Energy Gun Medium Laser Ballistic Gun Light Assault Rifle Launcher Grenade Launcher Build | -11 -10 -9 ------- Run | Yrd Mat Mat Slots Evolved 2 | . . 2 Power . | . . . Propulsion . | . . . Utility 2 | . . 2 Weapon . | . . . Parts Attached 25 | 5 12 8 Power 3 | 1 1 1 Engine 3 | 1 1 1 Core . | . . . Reactor . | . . . Propulsion 6 | 2 2 2 Treads . | . . . Leg 6 | 2 2 2 Wheel . | . . . Hover . | . . . Flight . | . . . Utility 8 | . 5 3 Device 4 | . 3 1 Storage . | . . . Processor 2 | . 1 1 Hackware . | . . . Protection 2 | . 1 1 Artifact . | . . . Weapon 8 | 2 4 2 Energy Gun 2 | . 2 . Energy Cannon . | . . . Ballistic Gun 2 | 2 . . Ballistic Cannon . | . . . Launcher 4 | . 2 2 Special Weapon . | . . . Impact Weapon . | . . . Slashing Weapon . | . . . Piercing Weapon . | . . . Special Melee Weapon . | . . . Unidentified Prototypes 1 | . . 1 Parts Lost 10 | . 3 7 Power 2 | . . 2 Propulsion 3 | . 1 2 Utility 1 | . . 1 Weapon 4 | . 2 2 Highest Loss Streak 7 | . 2 7 To Critical Strikes . | . . . Average Slot Usage (%) 95 | . 97 91 Engine 12 | . 14 10 Leg 25 | . 27 21 Device 14 | . 14 16 Processor 3 | . 2 5 Protection 13 | . 11 16 Energy Gun 6 | . 2 13 Ballistic Gun 3 | . 5 . Launcher 14 | . 18 8 Peak Build Rating 13 | 5 8 13 Average Rating 7 | 3 6 9 On Entrance 4 | . 5 7 Naked Turns . | . . . Heaviest Build 20 | 5 12 20 Greatest Support 23 | 20 20 23 Greatest Overweight (x) 3 | . . 3 Average Overweight (x) . | . . . Largest Inventory Capacity 5 | 5 5 5 Average Capacity 5 | 5 5 5 Most Carried 5 | 3 5 3 Average Carried 1 | . 2 . Final Capacity 5 | 5 5 5 Final Carried 3 | 3 1 2 Class Distribution -------------------- 100% | Mutant Dominant Class ---------------- Mutant | -10/Materials Mutant | -9/Materials Resources | -11 -10 -9 ----------- Run | Yrd Mat Mat Matter Collected 741 | 256 265 220 Remotely . | . . . Salvage Created 649 | 30 265 354 Parts 65 | 3 29 33 Haulers Intercepted . | . . . Recyclers Shooed 1 | . . 1 Parts Field Recycled . | . . . Retrieved Matter . | . . . Parts Self-Destructed . | . . . Prevented . | . . . Kills | -11 -10 -9 ------- Run | Yrd Mat Mat Combat Hostiles Destroyed 24 | 1 12 11 Guns 7 | 1 4 2 AOE 17 | . 8 9 Classes Destroyed 7 | 1 3 3 Builder 3 | . 2 1 Recycler 1 | . . 1 Watcher 4 | . 3 1 Swarmer 10 | . 6 4 Grunt 10 | 1 6 3 Brawler 1 | . . 1 Sentry 3 | . . 3 Best Kill Streak 6 | 1 5 6 Combat Bots Only 5 | 1 4 5 Max Kills in Single Turn 5 | 1 3 5 Gunslinging . | . . . Exploded 4 | . 3 4 Melee . | . . . Uniques/NPCs Destroyed . | . . . Combat | -11 -10 -9 -------- Run | Yrd Mat Mat Hostile Shots Fired 180 | 3 63 114 Missed 53 | 1 23 29 Damage Taken 1498 | 20 488 990 Core 540 | 10 130 400 Absorbed by Shields . | . . . Redirected to Shielding 2 | . . 2 Core Remaining (%) 70 | 96 44 . Volleys Fired 54 | 3 31 20 Largest 2 | 2 2 2 Hottest 100 | 40 100 100 Shots Fired 106 | 6 61 39 Gun 74 | 6 44 24 Cannon . | . . . Launcher 32 | . 17 15 Special . | . . . Kinetic 36 | 6 30 . Thermal 38 | . 14 24 Explosive 32 | . 17 15 Electromagnetic . | . . . Robot Hit Streak 6 | 4 6 4 Robot Miss Streak 5 | 1 5 2 Penetration Max . | . . . Secondary Targets . | . . . Shots Hit Robots 57 | 4 29 24 Core Hits 52 | 3 26 23 Critical Kills . | . . . Critical Parts Destroyed . | . . . Critical Strikes 1 | . . 1 Burn 1 | . . 1 Melee Attacks . | . . . Impact . | . . . Slashing . | . . . Piercing . | . . . Sneak Attacks . | . . . Combat Hostiles . | . . . Follow-up Attacks . | . . . Damage Inflicted 1776 | 33 916 827 Guns 443 | 33 226 184 Cannons . | . . . Explosions 1333 | . 690 643 Melee . | . . . Ramming . | . . . Kinetic 158 | 33 125 . Thermal 285 | . 101 184 Explosive 1333 | . 690 643 Electromagnetic . | . . . Impact . | . . . Slashing . | . . . Piercing . | . . . Highest Corruption . | . . . Average Corruption . | . . . Corruption Purged . | . . . Corruption Blocked . | . . . Overload Shots . | . . . Overflow Damage 28 | . 28 . Projectiles . | . . . Explosions 28 | . 28 . Melee . | . . . Knockbacks . | . . . Impact . | . . . Kinetic . | . . . Secondary . | . . . Self-Inflicted Damage 166 | . 112 54 Shots 8 | . 5 3 Rammed . | . . . Targets Rammed . | . . . Kicked . | . . . Crushed . | . . . Highest Temperature 206 | 6 206 123 Average Temperature 51 | 6 80 39 Received Heat Transfer 297 | 12 96 189 Siege Activations . | . . . Robots Corrupted . | . . . Combat Hostiles . | . . . Parts Fried . | . . . Impact Corruptions . | . . . Robots Melted . | . . . Combat Hostiles . | . . . Parts Melted 3 | . 2 1 Heat Transferred 925 | . 296 629 Parts Sabotaged . | . . . Parts Stolen . | . . . Parts Stripped . | . . . Power Chain Reactions . | . . . Alert | -11 -10 -9 ------- Run | Yrd Mat Mat Peak Influence 395 | 20 255 395 Initial 63 | . 13 63 Average 100 | 6 79 151 Maximum Alert Level 1 | . 1 1 Low Security (%) 88 | 100 97 72 Level 1 11 | . 2 27 Level 2 . | . . . Level 3 . | . . . Level 4 . | . . . Level 5 . | . . . High Security . | . . . Max Security . | . . . Squads Dispatched 2 | . 1 1 Investigation 1 | . 1 . Extermination . | . . . Reinforcement 1 | . . 1 Assault . | . . . Garrison . | . . . Intercept . | . . . Searches Triggered . | . . . Construction Impeded . | . . . Haulers Reinforced . | . . . Active Scanning Responses . | . . . Cargo Convoy Interrupts . | . . . Stealth | -11 -10 -9 --------- Run | Yrd Mat Mat Distress Signals 3 | . 1 2 Communications Jammed . | . . . Distress Signals . | . . . Times Spotted 44 | 1 20 23 Peak Tracking Total 5 | 1 3 5 Tactical Retreats 8 | . 2 6 Traps | -11 -10 -9 ------- Run | Yrd Mat Mat Traps Triggered 2 | . 2 . Indirectly . | . . . Trap Hack Attempts . | . . . Triggered . | . . . Disarmed . | . . . Reprogrammed . | . . . Reused . | . . . Traps Extracted . | . . . Installed . | . . . Triggered . | . . . Machines | -11 -10 -9 ---------- Run | Yrd Mat Mat Machines Disabled 4 | . 3 1 Max in Single Turn 1 | . 1 1 Machines Repaired . | . . . Machines Dismantled . | . . . Machines Sabotaged . | . . . Overloaded Fab Kills . | . . . Hacking | -11 -10 -9 --------- Run | Yrd Mat Mat Machines Accessed 7 | . 5 2 Terminals 4 | . 3 1 Fabricators . | . . . Repair Stations . | . . . Recycling Units 2 | . 2 . Scanalyzers 1 | . . 1 Garrison Access . | . . . Total Hacks 22 | . 13 9 Successful 15 | . 8 7 Failed 7 | . 5 2 Catastrophic . | . . . Database Lockouts . | . . . Manual . | . . . Terminals 9 | . 7 2 Fabricators . | . . . Repair Stations . | . . . Recycling Units 6 | . 6 . Scanalyzers 7 | . . 7 Garrison Access . | . . . Terminal Hacks 5 | . 4 1 Record 3 | . 3 . Scanalyzer Index 1 | . . 1 Alert Level 1 | . 1 . Fabricator Hacks . | . . . Repair Station Hacks . | . . . Recycling Unit Hacks 4 | . 4 . Report Inventory 2 | . 2 . Retrieve Matter 2 | . 2 . Scanalyzer 6 | . . 6 Insert Component 3 | . . 3 Analyze 3 | . . 3 Garrison Access Hacks . | . . . Unauthorized Hacks . | . . . Terminals . | . . . Fabricators . | . . . Repair Stations . | . . . Recycling Units . | . . . Scanalyzers . | . . . Garrison Access . | . . . Data Cores Recovered . | . . . Used . | . . . Hacking Detections 4 | . 3 1 Full Trace Events . | . . . Feedback Events . | . . . Feedback Blocked . | . . . Robot Schematics Acquired . | . . . Robots Built . | . . . Authchips . | . . . Time . | . . . Total Robot Build Rating . | . . . Part Schematics Acquired 3 | . . 3 Parts Built . | . . . Authchips . | . . . Time . | . . . Total Part Build Rating . | . . . Parts Repaired . | . . . Time . | . . . Parts Recycled . | . . . Recycled Matter . | . . . Retrieved Matter . | . . . Retrieved Components . | . . . Parts Scanalyzed 3 | . . 3 Part Schematics Acquired 3 | . . 3 Parts Damaged . | . . . Bothacking | -11 -10 -9 ------------ Run | Yrd Mat Mat Used RIF Installer . | . . . Robots Hacked . | . . . Non-combat . | . . . Combat . | . . . Robot Hacks Applied . | . . . Relay Couplers Released . | . . . Fabnet Peak Effective % . | . . . Robots Rewired . | . . . Allies Hacked . | . . . Hacks Repelled . | . . . Allies | -11 -10 -9 -------- Run | Yrd Mat Mat Total Allies . | . . . Largest Group . | . . . Highest-Rated Group . | . . . Highest-Rated Ally . | . . . Total Orders . | . . . Ally Attacks . | . . . Total Damage . | . . . Kills . | . . . Allies Corrupted . | . . . Allies Melted . | . . . Intel | -11 -10 -9 ------- Run | Yrd Mat Mat Robot Analysis Total . | . . . Derelict Logs Recovered . | . . . Drone Launches . | . . . Drone Recoveries . | . . . Exploration | -11 -10 -9 ------------- Run | Yrd Mat Mat Turns Passed 1884 | 119 1088 677 Spaces Moved 1418 | 98 813 507 Core 48 | 26 . 22 Treads . | . . . Legs 1370 | 72 813 485 Wheels . | . . . Hover . | . . . Flight . | . . . Fastest Speed 50 | 50 120 50 Average Speed 118 | 101 120 118 Slowest Speed 200 | 120 120 200 Overloaded Moves . | . . . Propulsion Burnouts . | . . . Robots Hopped . | . . . Cave-ins Triggered . | . . . Exploration Rate (%) 41 | 6 85 34 Regions Visited 2 Branch Regions . Pre-discovered Areas . | . . . Known Exits Taken . | . . . Unknown Exits Taken 2 | 1 1 . Scrap Searched . | . . . Spaces Dug . | . . . Terrain Destroyed 246 | . 88 158 Melee . | . . . Projectile . | . . . AOE 246 | . 88 158 Terrain Rammed . | . . . Walls Destroyed . | . . . Machines Disabled . | . . . Actions | -11 -10 -9 --------- Run | Yrd Mat Mat Total 1532 | 113 872 547 Wait . | . . . Move 1416 | 97 812 507 Hop . | . . . Pick Up 25 | 8 10 7 Fast Attach . | . . . Attach 18 | 5 8 5 Detach 2 | . . 2 Swap 7 | . 4 3 Drop 10 | . 7 3 Fire 54 | 3 31 20 Melee . | . . . Ram . | . . . Kick . | . . . Crush . | . . . Escape Stasis . | . . . Rewire . | . . . Trap . | . . . Miscellaneous . | . . . Route ------- -11/Scrapyard -10/Materials (discovered 5 exits: *Mat x3 / [*Min x2]) -9/Materials (discovered 1 exit: [*Min]) History --------- Turn | Location | Event 2 | -11/Scrapyard | Met Revision 17 73 | -11/Scrapyard | Discovered new exit (range 8) 120 | -11/Scrapyard | Entered Materials 317 | -10/Materials | Build established: Mutant 352 | -10/Materials | Discovered new exit (range 16) 470 | -10/Materials | Discovered new exit (range 8) 679 | -10/Materials | Discovered new exit (range 5) 834 | -10/Materials | Discovered new exit (range 7) 1115 | -10/Materials | Discovered new exit (range 7) 1154 | -10/Materials | Core integrity fell below 50% 1208 | -10/Materials | Entered another Materials area 1208 | -9/Materials | Evolved 2 slots: Utility x2 1685 | -9/Materials | Discovered new exit (range 15) 1874 | -9/Materials | Core integrity fell below 50% 1883 | -9/Materials | Core integrity fell below 20% 1885 | -9/Materials | Destroyed by S-10 Pest with Light Assault Rifle Last Messages --------------- 01849_ Aluminum Leg destroyed. 01849_ Critical hit (Burn: +37). 01850_ U-05 Engineer builds a Wall. 01856_ Lgt. Armor Plating destroyed. 01857_ Rocket Launcher destroyed. 01859_ U-05 Engineer lays Concrete. 01859_ Y-45 Defender suffers critical hit (Burn). 01860_ U-05 Engineer lays Concrete. 01861_ U-05 Engineer builds a Wall. 01861_ Med. Laser destroyed. 01865_ U-05 Engineer lays Concrete. 01867_ U-05 Engineer builds a Wall. 01868_ Imp. Aluminum Leg destroyed. 01872_ U-05 Engineer lays Concrete. 01874_ U-05 Engineer builds a Wall. 01876_ Cld. Ion Engine destroyed. 01879_ U-05 Engineer lays Concrete. 01881_ U-05 Engineer builds a Wall. [Achievement: First Step to Greatness] Map ----- +----------------------------------------------------+ | ???????????????# + = T #???????? | | ???????????????# ## #???????? | | ???????????????# ##| ####### #???????? | | ???????????????# ## %# #?#####+#####?????? | | ???????????????# ## # #?# #?????? | | ???????????????# ## # #?# #?????? | | ???????????????# ## ###?# #?????? | | ???????????????# ## # #?# #?????? | | ??????????? #######+##### # #?# #?????? | | ?????????? a ##?# #?????? | | ?????????? #??# #?????? | | ?????????? #??# #?????? | | ???????????? #######+#+## #??###########?????? | | ???????????????????? ??????????????????? | | ?????????????????"" """ #??????????????????? | | ?????????????????"" "" # < ??????????????????? | | ?????????????????"" """ ##?????????????????? | | ?????????????????? ??????????????????? | | ???????????????????? #??????????????????? | | ????????????????????? !# #??????????????????? | | ?????????????????????? #??????????????????? | | ???????????????????????# #??????????????????? | | ????????????????????????# #??????????????????? | | ????????????????????????# #####??????????????? | | ??????????? ############# #######????????? | | ?????????? s @ ??????? | | ?????????? Y s % ??????? | | ?????????? s ! ! u ??????? | | ??????????# ^ = ###############+#### ???????? | | ???????????^^ ???## [ #??????????? | | ???????????^ T """????# [ %[ """#??????????? | | ???????????? "??????# [ !! """???????????? | | ???????????????????????# [ =* """???????????? | | ???????????????????????## #??????????? | | ????????????????????????# # """#??????????? | | ????????????????????????+ "# """???????????? | | ????????????????????????# T# ""????????????? | | ????????????????????????#! "#? ????????????? | | ????????????????????????# #??######???????????? | | ?????????????????????????####????????????????????? | | | | | | | | | | | | | | | | | | | | | +----------------------------------------------------+ Best States ------------- Heat Dissipation 35 Energy Generation 14 Energy Capacity 280 Matter Stores 300 Matter Capacity 300 Sight Range 18 Terrain Scan Density 10 ECM Strength 2 Armor Coverage 150 Utility Shielding 33 Evasion (%) 55 Item Schematics ----------------- Hvy. Hammer | -9/Materials | Scanalyzed Rocket Launcher | -9/Materials | Scanalyzed Imp. Aluminum Leg | -9/Materials | Scanalyzed Robot Schematics ------------------ None Fabricated ------------ Nothing Alien Tech Used ----------------- None Achievements -------------- First Step to Greatness Risk Taker Challenges ------------ None Game ------ Seed LatentInsulationChainsaw Manual? 0 Play Time 00:24:13 Cumulative 1.3 hours Start 2024.10.25 @ 09:03:25 End 2024.10.25 @ 09:26:13 Sessions 1 Manual Loads 0 Difficulty Rogue Special Mode None Game No. 2 Rogue 1 Adventurer 1 Explorer 0 Win Type - Total 0 Types 0/0/0/0/0/0/0/0/0 Lore% 1 Gallery% 3 Achievement% 6 Wizard Run 0 Options --------- Layout 1 ASCII 0 Keyboard 0 Movement Arrows Keybinds 0 Fullscreen 1 Font 24/Smallcaps Map View 50x40 Zoom Use 0% Tactical HUD 1 Map Filters NONE Filters NONE Steam 1 RUN: 8f2bbd65-de55-48bb-a8cb-97bf59104048